Cogmind - Beta 17 @@@ ROGUE MODE // 2026.07.31 @ 17:39:28 Player: LandRaider Result: Destroyed by S-10 Pest with Light Assault Rifle Performance ------------- Evolutions (0) 0 Regions Visited (2) 400 Robots Destroyed (8) 40 Value Destroyed (224) 224 Prototype IDs (0) 0 Alien Tech Used (0) 0 Bonus (-11) -11 TOTAL SCORE: 653 Bonus ------- Friendly Fire -11 Cogmind --------- Core Integrity 0/250 Matter 280/300 Energy 200/200 System Corruption 3% Temperature Cool (0) Movement Rolling (110) Location -10/Subcaves Parts ------- > --- POWER (1) -------- Subdweller Power Source > --- PROPULSION (2) --- Subdweller Monowheel Subdweller Monowheel > --- UTILITY (2) ------ Small Storage Unit Utility Shielding (fused) > --- WEAPON (2) ------- Small Laser Subdweller Machine Gun > --- INVENTORY (8) ---- Light Ion Engine Light Treads Light Treads Aluminum Leg Aluminum Leg Subdweller Optics ECM Suite Hammer Peak State ------------ > --- POWER ------------ Subdweller Power Source > --- PROPULSION ------- Subdweller Monowheel Subdweller Monowheel > --- UTILITY ---------- Small Storage Unit Utility Shielding > --- WEAPON ----------- Small Laser Subdweller Machine Gun > --- INVENTORY -------- Light Ion Engine Light Treads Light Treads Aluminum Leg Aluminum Leg Subdweller Optics ECM Suite Hammer [Rating: 11] Favorites ----------- Power Ion Engine Engine Ion Engine Propulsion Compact Wheel Wheel Compact Wheel Utility Small Storage Unit Storage Small Storage Unit Protection Utility Shielding Weapon Light Assault Rifle Energy Gun Medium Laser Ballistic Gun Light Assault Rifle Build | -11 -10 -10 ------- Run | Yrd Mat Sub Slots Evolved . | . . . Power . | . . . Propulsion . | . . . Utility . | . . . Weapon . | . . . Parts Attached 14 | 6 2 6 Power 2 | 1 . 1 Engine 2 | 1 . 1 Core . | . . . Reactor . | . . . Propulsion 5 | 2 . 3 Treads . | . . . Leg . | . . . Wheel 5 | 2 . 3 Hover . | . . . Flight . | . . . Utility 2 | 1 1 . Device . | . . . Storage 1 | 1 . . Processor . | . . . Hackware . | . . . Protection 1 | . 1 . Artifact . | . . . Weapon 5 | 2 1 2 Energy Gun 2 | 1 . 1 Energy Cannon . | . . . Ballistic Gun 3 | 1 1 1 Ballistic Cannon . | . . . Launcher . | . . . Special Weapon . | . . . Impact Weapon . | . . . Slashing Weapon . | . . . Piercing Weapon . | . . . Special Melee Weapon . | . . . Unidentified Prototypes . | . . . Parts Lost 3 | . . 3 Power . | . . . Propulsion 2 | . . 2 Utility . | . . . Weapon 1 | . . 1 Highest Loss Streak 2 | . . 2 To Critical Strikes . | . . . Average Backups 7 | 2 7 7 Power . | . 1 1 Propulsion 3 | 2 4 4 Utility 1 | . . 1 Weapon 1 | . 1 1 Tool/Special . | . . . Unused Backups 8 | . . 8 Power 1 | . . 1 Propulsion 4 | . . 4 Utility 2 | . . 2 Weapon 1 | . . 1 Tool/Special . | . . . Average Slot Usage (%) 95 | . 93 96 Engine 14 | . 14 14 Wheel 26 | . 28 25 Storage 14 | . 14 14 Protection 10 | . 7 14 Energy Gun 13 | . 14 13 Ballistic Gun 14 | . 14 14 Peak Build Rating 11 | 6 7 11 Average Rating 7 | 4 6 9 On Entrance 4 | . 6 7 Avg Prop Armor Cover (%) . | . . . Naked Turns . | . . . Heaviest Build 16 | 13 14 16 Greatest Support 40 | 32 32 40 Greatest Overweight (x) . | . . . Average Overweight (x) . | . . . Largest Inventory Capacity 8 | 8 8 8 Average Capacity 7 | 7 8 8 Most Carried 8 | 6 8 8 Average Carried 7 | 3 7 7 Final Capacity 8 | 8 8 8 Final Carried 8 | 6 8 8 Class Distribution -------------------- 89% | Mutant 10% | Scavenger-Mutant Dominant Class ---------------- Mutant | -10/Materials Mutant | -10/Subcaves Resources | -11 -10 -10 ----------- Run | Yrd Mat Sub Matter Collected 416 | 147 85 184 Remotely . | . . . Salvage Created 278 | . 85 193 Parts 18 | . 6 12 Haulers Intercepted . | . . . Recyclers Shooed . | . . . Parts Field Recycled . | . . . Retrieved Matter . | . . . Parts Self-Destructed . | . . . Prevented . | . . . Parts Restored . | . . . Kills | -11 -10 -10 ------- Run | Yrd Mat Sub Combat Hostiles Destroyed 8 | . 4 4 Guns 8 | . 4 4 Classes Destroyed 3 | . 2 1 Swarmer 3 | . 3 . Grunt 1 | . 1 . Subdweller 4 | . . 4 Best Kill Streak 3 | . 3 2 Combat Bots Only 3 | . 3 2 Max Kills in Single Turn 1 | . 1 1 Gunslinging . | . . . Exploded . | . . . Melee . | . . . Uniques/NPCs Destroyed . | . . . Combat | -11 -10 -10 -------- Run | Yrd Mat Sub Hostile Shots Fired 77 | . 31 46 Missed 20 | . 4 16 Hits 57 | . 27 30 Projectile 57 | . 27 30 Critical Strikes 1 | . . 1 Actively Blocked 1 | . . 1 Damage Taken 787 | . 233 554 Core 256 | . 88 168 Absorbed by Shields . | . . . Redirected to Shielding 23 | . . 23 Core Remaining (%) 100 | 100 . . Volleys Fired 46 | . 15 31 Largest 2 | . 2 2 Hottest 70 | . 70 70 Shots Fired 87 | . 31 56 Gun 87 | . 31 56 Cannon . | . . . Launcher . | . . . Special . | . . . Kinetic 46 | . 15 31 Thermal 41 | . 16 25 Explosive . | . . . Electromagnetic . | . . . Robot Hit Streak 8 | . 2 8 Robot Miss Streak 4 | . 4 2 Penetration Max . | . . . Secondary Targets 1 | . . 1 Max Gunslinging Chain 1 | . . 1 Shots Hit Robots 46 | . 12 34 Core Hits 17 | . 6 11 Critical Kills . | . . . Critical Parts Destroyed . | . . . Critical Strikes . | . . . Melee Attacks . | . . . Impact . | . . . Slashing . | . . . Piercing . | . . . Sneak Attacks . | . . . Combat Hostiles . | . . . Follow-up Attacks . | . . . Damage Inflicted 514 | . 124 390 Guns 514 | . 124 390 Cannons . | . . . Explosions . | . . . Melee . | . . . Ramming . | . . . Kinetic 289 | . 74 215 Thermal 225 | . 50 175 Explosive . | . . . Electromagnetic . | . . . Impact . | . . . Slashing . | . . . Piercing . | . . . Highest Corruption 3 | . 3 3 Average Corruption 2 | . 2 3 Corruption Purged . | . . . Corruption Blocked . | . . . Effects 12 | . 6 6 Message Errors 2 | . 1 1 Matter Fused 5 | . 2 3 Parts Fused 1 | . . 1 Data Loss (minor) 3 | . 2 1 Misfires 1 | . 1 . Overload Shots . | . . . Overflow Damage . | . . . Projectiles . | . . . Explosions . | . . . Melee . | . . . Knockbacks . | . . . Impact . | . . . Kinetic . | . . . Secondary . | . . . Self-Inflicted Damage . | . . . Shots . | . . . Rammed . | . . . Targets Rammed . | . . . Kicked . | . . . Crushed . | . . . Highest Temperature 150 | . 150 . Average Temperature 55 | . 55 . Received Heat Transfer 120 | . 30 90 Siege Activations . | . . . Martial Activations . | . . . Shielding Activations . | . . . Robots Disrupted . | . . . Combat Hostiles . | . . . Robots Corrupted . | . . . Combat Hostiles . | . . . Parts Fried . | . . . Impact Corruptions . | . . . Robots Melted . | . . . Combat Hostiles . | . . . Parts Melted . | . . . Heat Transferred 572 | . 148 424 Parts Sabotaged . | . . . Parts Stolen . | . . . Parts Stripped . | . . . Power Chain Reactions . | . . . Alert | -11 -10 -10 ------- Run | Yrd Mat Sub Maximum Alert Level . | . . . Low Security (%) 100 | 100 100 . Level 1 . | . . . Level 2 . | . . . Level 3 . | . . . Level 4 . | . . . Level 5 . | . . . High Security . | . . . Max Security . | . . . Peak Influence 65 | . 65 . Initial . | . . . Average 12 | . 15 . Influence Increases 150 | . 120 30 Destroy 0b10 Robot/C 80 | . 80 . Destroy Leader 10 | . 10 . Lose Combat Pursuer 60 | . 30 30 Influence Decreases 120 | . 85 35 Entered New Map 18 | . . 18 Time Decay 95 | . 85 10 Lost Part 7 | . . 7 Squads Dispatched . | . . . Investigation . | . . . Extermination . | . . . Reinforcement . | . . . Assault . | . . . Garrison . | . . . Intercept . | . . . Searches Triggered . | . . . Construction Impeded . | . . . Haulers Reinforced . | . . . Active Scanning Responses . | . . . Cargo Convoy Interrupts . | . . . Stealth | -11 -10 -10 --------- Run | Yrd Mat Sub Distress Signals . | . . . Communications Jammed . | . . . Distress Signals . | . . . Times Spotted 16 | . 7 9 Peak Tracking Total 7 | . 3 7 Tactical Retreats 3 | . 2 1 Traps | -11 -10 -10 ------- Run | Yrd Mat Sub Traps Triggered 2 | . 2 . Indirectly . | . . . Trap Hack Attempts . | . . . Triggered . | . . . Disarmed . | . . . Reprogrammed . | . . . Reused . | . . . Traps Extracted . | . . . Installed . | . . . Triggered . | . . . Machines | -11 -10 -10 ---------- Run | Yrd Mat Sub Machines Disabled . | . . . Max in Single Turn . | . . . Machines Repaired . | . . . Machines Dismantled . | . . . Machines Sabotaged . | . . . Overloaded Fab Kills . | . . . Hacking | -11 -10 -10 --------- Run | Yrd Mat Sub Machines Accessed 1 | . 1 . Terminals . | . . . Fabricators . | . . . Repair Stations . | . . . Recycling Units 1 | . 1 . Scanalyzers . | . . . Garrison Access . | . . . Total Hacks 1 | . 1 . Successful 1 | . 1 . Failed . | . . . Catastrophic . | . . . Database Lockouts . | . . . Manual 1 | . 1 . Terminals . | . . . Fabricators . | . . . Repair Stations . | . . . Recycling Units 1 | . 1 . Scanalyzers . | . . . Garrison Access . | . . . Terminal Hacks . | . . . Fabricator Hacks . | . . . Repair Station Hacks . | . . . Recycling Unit Hacks 1 | . 1 . Report Inventory 1 | . 1 . Scanalyzer . | . . . Garrison Access Hacks . | . . . Unauthorized Hacks . | . . . Terminals . | . . . Fabricators . | . . . Repair Stations . | . . . Recycling Units . | . . . Scanalyzers . | . . . Garrison Access . | . . . Data Cores Recovered . | . . . Used . | . . . Hacking Detections . | . . . Full Trace Events . | . . . Feedback Events . | . . . Feedback Blocked . | . . . Robot Schematics Acquired . | . . . Robots Built . | . . . Authchips . | . . . Time . | . . . Total Robot Build Rating . | . . . Part Schematics Acquired . | . . . Parts Built . | . . . Authchips . | . . . Time . | . . . Total Part Build Rating . | . . . Part Studies Acquired . | . . . Parts Repaired . | . . . Time . | . . . Parts Recycled . | . . . Recycled Matter . | . . . Retrieved Matter . | . . . Retrieved Components . | . . . Parts Scanalyzed . | . . . Part Schematics Acquired . | . . . Parts Damaged . | . . . Bothacking | -11 -10 -10 ------------ Run | Yrd Mat Sub Used RIF Installer . | . . . Robots Hacked . | . . . Non-combat . | . . . Combat . | . . . Robot Hacks Applied . | . . . Relay Couplers Released . | . . . Fabnet Peak Effective % . | . . . Robots Rewired . | . . . Allies Hacked . | . . . Hacks Repelled . | . . . Allies | -11 -10 -10 -------- Run | Yrd Mat Sub Total Allies . | . . . Largest Group . | . . . Highest-Rated Group . | . . . Highest-Rated Ally . | . . . Total Orders . | . . . Ally Attacks . | . . . Total Damage . | . . . Kills . | . . . Allies Corrupted . | . . . Allies Melted . | . . . Intel | -11 -10 -10 ------- Run | Yrd Mat Sub Active Infowar (turns) . | . . . Robot Analysis Total . | . . . Derelict Logs Recovered . | . . . Drone Launches . | . . . Drone Recoveries . | . . . Exploration | -11 -10 -10 ------------- Run | Yrd Mat Sub Turns Passed 743 | 70 343 330 Spaces Moved 547 | 50 286 211 Core 1 | 1 . . Treads . | . . . Legs . | . . . Wheels 546 | 49 286 211 Hover . | . . . Flight . | . . . Fastest Speed 50 | 50 100 100 Average Speed 102 | 99 100 105 Slowest Speed 110 | 100 100 110 Overloaded Moves . | . . . Propulsion Burnouts . | . . . Robots Hopped . | . . . Potential Cave-ins . | . . . Cave-ins Triggered . | . . . Exploration Rate (%) 24 | 4 50 19 Regions Visited 2 Branch Regions 1 Pre-discovered Areas . | . . . Known Exits Taken . | . . . Unknown Exits Taken 2 | 1 1 . Scrap Searched . | . . . Spaces Dug . | . . . Terrain Destroyed . | . . . Melee . | . . . Projectile . | . . . AOE . | . . . Terrain Rammed . | . . . Walls Destroyed . | . . . Machines Disabled . | . . . Actions | -11 -10 -10 --------- Run | Yrd Mat Sub Total 650 | 68 316 266 Wait 27 | 5 11 11 Move 545 | 49 285 211 Hop . | . . . Pick Up 12 | 8 2 2 Fast Attach 7 | 4 1 2 Attach 3 | 2 . 1 Detach . | . . . Swap 5 | . 1 4 Drop 5 | . 1 4 Fire 46 | . 15 31 Melee . | . . . Ram . | . . . Kick . | . . . Crush . | . . . Escape Stasis . | . . . Rewire . | . . . Trap . | . . . Miscellaneous . | . . . Route ------- -11/Scrapyard -10/Materials (discovered 2 exits: [*Mat] / [*Sub]) -10/Subcaves History --------- Turn | Location | Event 30 | -11/Scrapyard | Discovered new exit (range 15) 71 | -11/Scrapyard | Entered Materials 133 | -10/Materials | Discovered new exit (range 5) 301 | -10/Materials | Build established: Mutant 331 | -10/Materials | Discovered new exit (range 7) 414 | -10/Materials | Entered Subcaves 415 | -10/Subcaves | Approached by a straggling Scientist 434 | -10/Subcaves | Ambushed by Subdwellers from Twisted Machinery 465 | -10/Subcaves | Core integrity fell below 50% 520 | -10/Subcaves | A swath of the cavern ceiling suddenly collapsed 639 | -10/Subcaves | Core integrity fell below 20% 744 | -10/Subcaves | Destroyed by S-10 Pest with Light Assault Rifle Last Messages --------------- 00504_ Subatomizers dissect the Sub. Power Source. 00508_ Dropped Lgt. Assault Rifle. 00509_ Acquired 49 matter. DK-X5G(c): "I think it's somewhere south of here" 00518_ Subatomizers dissect the Sub. Power Source. A swath of the cavern ceiling suddenly collapses. 00540_ System corrupted: Utility Shielding fused. DK-X5G(c): "I think it's somewhere south of here" DK-X5G(c): "I think it's somewhere southwest of here" 00629_ System corrupted: Matter fused (-7). 00632_ Sub. Monowheel destroyed. 00646_ OT-ZBU(R) destroyed. 00646_ Switching to secondary target: 6W-03Y(R). 00652_ 6W-03Y(R) destroyed. 00658_ Acquired 41 matter. 00663_ Acquired Sub. Monowheel. 00668_ &>K5PZSFKF :075WZ5B9CYJ 00673_ Acquired 39 matter. 00675_ Dropped Sub. Monowheel. 00677_ Dropped Com. Wheel. Map ----- +----------------------------------------------------+ | ?????????????????????????????????????????????????? | | ?????????????????????????????????????????????????? | | ?????????????????????????????????????????????????? | | ?????????????????????????????????????????????????? | | ?????????????????????????????????????????????????? | | #????????????????????????????????????????????????? | | #????????????????????????????????????????????????? | | #????????????????????????????????????????????????? | | #????????????????????????????????????????????????? | | #????????????????????????????????????????????????? | | ?????????????????????????????????????????????????? | | ????????????????????????? ????????????????????? | | ????????????????????????? ????????????????????? | | ????????????????????????? ????????????????????? | | ????????????????????????? ????????????????????? | | ???????######???????????? ????????????????????? | | ???????# #???????????? #????????????????????? | | ???????## ????????????? #????????????????????? | | ???????#" ##???????????? #????????????????????? | | ?????###" "###?###?####? ###??????????????????? | | ???### " ### ## ## ###????????????????? | | ??## ## ##???????????????? | | ### ### #?# #???????????????? | | # ## ####?# #???????????????? | | ## #???## #????????????????? | | ##### ## #####@ ## #????????????? | | #????### #?????????????? | | ##?????## s #?????????????? | | ##?###### s##s #?????????????? | | ##?# ######s #?????????????? | | ##?# #####????#%! ??????????? | | ### ####????????? ! #?????????? | | #????????????? #?????????? | | #????????????? ?????????? | | #????????????? ?????????? | | ## #???????????? ??????????? | | ##?#######???????????? ## ??????????? | | #????????????????????# #######?? ???????????? | | ###??????????????????# #????????????????????? | | ##?????????????????# #????????????????????? | | #?????????????????? ?????????????????????? | | ##?????????????????? ?????????????????????? | | ##??????????????????? ?????????????????????? | | #????????????????????????????????????????????? | | #????????????????????????????????????????????? | | ##????????????????????????????????????????????? | | #?????????????????????????????????????????????? | | ##????????????????????????????????????????????? | | #????????????????????????????????????????????? | | #????????????????????????????????????????????? | +----------------------------------------------------+ Best States ------------- Heat Dissipation 25 Energy Generation 15 Energy Capacity 250 Matter Stores 280 Matter Capacity 300 Sight Range 16 Terrain Scan Density 10 Utility Shielding 33 Evasion (%) 40 Item Schematics ----------------- None Robot Schematics ------------------ None Fabricated ------------ Nothing Repaired ---------- Nothing Studied --------- None Alien Tech Used ----------------- None Achievements -------------- None Challenges ------------ None Game ------ Seed WeightChargeDrillbomb Manual? 0 Play Time 00:09:55 Cumulative 23.2 hours Start 2026.07.31 @ 17:30:27 End 2026.07.31 @ 17:39:28 Sessions 1 Manual Loads 0 Difficulty Rogue Special Mode None Game No. 20 Rogue 18 Adventurer 2 Explorer 0 Win Type - Total 0 Types 0/0/0/0/0/0/0/0/0/0 Lore% 20 Gallery% 15 Achievement% 15 Wizard Run 0 Options --------- Layout 0 ASCII 0 Keyboard 0 Movement Mouse Keybinds 0 Fullscreen 2 Font 24/Smallcaps Map View 76x50 Zoom Use 0% Tactical HUD 1 Map Filters NONE Filters NONE Steam 1 RUN: f80fc6b3-d6c7-45a3-8dbb-cb3db9410210